bitfinex-derivatives/quotes_SOLF0:USTF0_20250730
["timestamp","ask_amount","ask_price","bid_price","bid_amount"]
[1753862826342,3.02,180.89,180.82,2.72809194]
[1753862826943,3.02,180.88,180.82,2.72809194]
[1753862827544,5.5288,180.88,180.84,5.5298]
[1753862827847,3.02,180.87,180.84,5.5298]
[1753862828740,2.72809194,180.9,180.75,2.72809194]
[1753862828741,11.39385475,180.86,180.75,2.72809194]
[1753862828937,3.02,180.82,180.73,2.72809194]
[1753862829544,8.5509,180.82,180.78,5.5318]
[1753862829741,5.5309,180.82,180.78,5.5318]
[1753862829936,3.02,180.81,180.78,5.5318]
[1753862830344,5.531,180.81,180.77,5.5321]
[1753862830645,3.02,180.8,180.77,5.5321]
[1753862834548,3.02,180.8,180.71,2.72809194]
[1753862834745,3.02,180.8,180.73,2.72809194]
[1753862835251,3.02,180.8,180.78,5.5316]
[1753862835739,5.74809194,180.83,180.8,5.531]
[1753862835941,3.02,180.82,180.75,2.72809194]
[1753862836440,3.02,180.82,180.8,5.531]
[1753862838148,3.02,180.82,180.81,5.5309]
[1753862842755,3.02,180.82,180.8,5.5311]
[1753862844454,3.02,180.82,180.81,5.5309]
[1753862847158,3.02,180.82,180.8,5.5311]
[1753862847958,8.25809194,180.84,180.8,5.5311]
[1753862848156,3.08,180.83,180.8,5.5311]
[1753862849053,3.08,180.83,180.75,2.72809194]
[1753862849758,3.08,180.82,180.75,2.72809194]
[1753862850559,3.08,180.82,180.79,5.5314]
[1753862850860,3.08,180.82,180.75,2.72809194]
[1753862852260,3.08,180.82,180.8,5.5312]
[1753862854863,3.08,180.82,180.79,5.5314]
[1753862855859,5.80809194,180.82,180.76,2.72809194]
[1753862856063,3.08,180.81,180.72,2.72809194]
[1753862856464,3.08,180.81,180.77,5.5319]
[1753862856966,3.08,180.84,180.8,2.72809194]
[1753862857158,3.08,180.84,180.83,5.5303]
[1753862857766,4.62132399,180.91,180.82,2.72809194]
[1753862857767,3.08,180.88,180.82,2.72809194]
[1753862857965,3.08,180.88,180.85,2.72809194]
[1753862858465,4.62132399,180.94,180.85,2.72809194]
[1753862858662,16.90970818,180.93,180.85,2.72809194]
[1753862858964,3.08,180.91,180.85,2.72809194]
[1753862859165,3.08,180.89,180.85,2.72809194]
[1753862859867,3.08,180.89,180.87,5.5288]
[1753862861769,3.08,180.89,180.88,5.5287]
[1753862862173,3.08,180.94,180.87,2.72809194]
[1753862862471,3.08,180.92,180.89,2.72809194]
[1753862862672,3.08,180.98,180.91,2.72809194]
[1753862862973,3.08,180.96,180.94,5.5269]
[1753862863172,12.26367844,180.95,180.94,5.5269]
[1753862863371,7.48315186,180.95,180.94,5.5269]
[1753862863772,3.08,180.94,180.93,5.5271]
[1753862863972,7.48315186,180.94,180.93,5.5271]
[1753862864374,3.08,180.94,180.93,5.5271]
[1753862864869,3.08,180.94,180.92,5.5275]
[1753862865075,3.08,180.94,180.87,2.72809194]
[1753862865476,3.08,180.93,180.87,2.72809194]
[1753862867679,3.08,180.93,180.89,5.5282]
[1753862868578,3.08,180.93,180.9,5.5281]
[1753862868774,3.08,180.92,180.91,2.72809194]
[1753862870281,3.08,180.92,180.91,8.25589194]
[1753862871578,3.1,180.98,180.96,5.5262]
[1753862872082,3.1,181.02,180.95,2.72809194]
[1753862872283,3.1,181.0,180.95,2.72809194]
[1753862872483,3.1,180.98,180.96,5.5262]
[1753862872880,3.1,180.98,180.95,2.72809194]
[1753862872881,3.1,180.98,180.95,8.25469194]
[1753862873184,3.1,180.98,180.95,5.5266]
[1753862874486,3.1,180.98,180.93,8.25499194]
[1753862874679,3.1,180.98,180.93,2.72809194]
[1753862875482,3.1,180.98,180.94,5.5269]
[1753862875684,3.1,180.98,180.93,2.72809194]
[1753862875980,3.1,180.98,180.94,5.5269]
[1753862877080,3.1,180.98,180.95,5.5266]
[1753862877685,3.1,180.98,180.94,5.5268]
[1753862878083,3.1,180.98,180.93,2.72809194]
[1753862879389,3.1,180.98,180.95,5.5266]
[1753862879680,3.1,180.98,180.93,2.72809194]
[1753862880184,3.1,180.98,180.96,5.5263]
[1753862881790,3.1,180.98,180.95,5.5265]
[1753862882087,3.1,180.98,180.93,2.72809194]
[1753862882990,3.1,180.97,180.96,5.5262]
[1753862883193,3.1,181.03,180.95,2.72809194]
[1753862883385,3.1,181.01,180.95,2.72809194]
[1753862883578,3.1,181.01,180.97,2.72809194]
[1753862884893,3.1,181.01,180.99,5.5252]
[1753862885787,3.1,181.01,181.0,5.5251]
[1753862888091,4.62132399,181.09,180.89,130.86747455]
[1753862888292,4.39503861,181.08,181.04,2.72809194]
[1753862888488,3.1,181.09,180.99,2.72809194]
[1753862888687,3.1,181.09,181.03,2.72809194]
[1753862889993,3.1,181.09,181.04,2.72809194]
[1753862890386,3.1,181.09,181.06,5.5231]
[1753862891889,3.1,181.11,181.06,5.5231]
[1753862892097,3.1,181.09,181.06,5.5231]
[1753862892289,2.72809194,181.14,181.06,2.72809194]
[1753862892484,13.34254658,181.13,181.06,2.72809194]
[1753862892695,3.1,181.11,181.06,2.72809194]
[1753862892882,3.1,181.09,181.07,5.523]
[1753862893084,3.1,181.08,181.07,5.523]
[1753862893885,2.72809194,181.14,181.07,5.523]
[1753862894091,3.1,181.12,181.08,5.5227]
[1753862894398,3.1,181.1,181.06,2.72809194]
[1753862894592,1.476e-05,181.09,181.08,8.25079194]
[1753862894797,3.1,181.12,181.08,2.72809194]
[1753862894998,3.1,181.11,181.1,2.72809194]
[1753862895796,3.1,181.11,181.08,2.72809194]
[1753862896098,3.1,181.17,181.11,5.5217]
[1753862896298,3.1,181.15,181.12,2.72809194]
[1753862896600,4.62132399,181.21,181.01,118.94]
[1753862896601,3.1,181.21,181.14,2.72809194]
[1753862896894,3.1,181.19,181.14,2.72809194]
[1753862897094,3.1,181.17,181.14,2.72809194]
[1753862897299,3.1,181.17,181.16,8.24809194]
[1753862898590,7.34941593,181.25,181.16,8.24809194]
[1753862898591,3.1,181.2,181.16,2.72809194]
[1753862898792,4.72914937,181.19,181.18,2.72809194]
[1753862899094,3.1,181.19,181.18,2.72809194]
[1753862899290,7.82834945,181.19,181.18,2.72809194]
[1753862899491,3.1,181.19,181.18,2.72809194]
[1753862899789,3.1,181.19,181.08,2.72809194]
[1753862899995,2.72809194,181.19,181.09,2.72809194]
[1753862900193,3.1,181.17,181.09,2.72809194]
[1753862900600,5.5202,181.17,181.12,5.5214]
[1753862900801,3.1,181.18,181.11,2.72809194]
[1753862900993,3.1,181.18,181.14,5.5208]
[1753862901302,3.1,181.18,181.1,2.72809194]
[1753862901804,3.01,181.16,181.13,5.5211]
[1753862902095,3.01,181.16,181.15,5.5205]
[1753862902497,3.01,181.19,181.12,2.72809194]
[1753862904500,3.01,181.19,181.14,2.72809194]
[1753862904695,3.01,181.19,181.17,5.5199]
[1753862906496,3.01,181.19,181.15,5.5203]
[1753862906692,4.32666197,181.18,181.15,5.5203]
[1753862906900,3.01,181.17,181.15,5.5203]
[1753862907393,3.01,181.17,181.11,2.72809194]
[1753862908004,3.01,181.17,181.15,5.5203]
[1753862908804,3.01,181.17,181.16,5.5202]
[1753862909003,3.01,181.17,181.13,2.72809194]
[1753862909503,3.01,181.17,181.15,5.5205]
[1753862910106,3.01,181.16,181.13,2.72809194]
[1753862910301,2.72809194,181.22,181.13,2.72809194]
[1753862910502,3.01,181.21,181.15,2.72809194]
[1753862910708,3.01,181.21,181.19,5.5192]
[1753862910904,2.72809194,181.27,181.17,2.72809194]
[1753862911115,3.01,181.25,181.22,5.5182]
[1753862912211,3.01,181.25,181.21,5.5186]
[1753862912508,3.01,181.25,181.19,2.72809194]
[1753862913111,3.01,181.25,181.13,100.57202257]
[1753862913410,3.01,181.25,181.22,5.5182]
[1753862913812,3.01,181.25,181.19,2.72809194]
[1753862914111,3.01,181.25,181.21,2.72809194]
[1753862914405,3.01,181.25,181.24,5.5178]
[1753862915215,4.62132399,181.31,181.24,2.72809194]
[1753862915511,3.01,181.29,181.28,2.72809194]
[1753862915707,3.01,181.29,181.28,8.24469194]
[1753862917910,4.62132399,181.34,181.28,2.72809194]
[1753862918114,3.94697934,181.33,181.28,2.72809194]
[1753862918308,3.94697934,181.32,181.28,2.72809194]
[1753862918514,3.01,181.3,181.28,2.72809194]
[1753862918713,5.5146,181.35,181.28,2.72809194]
[1753862918714,3.01,181.29,181.28,2.72809194]
[1753862918919,3.01,181.29,181.28,8.24469194]
[1753862919806,3.01,181.29,181.26,2.72809194]
[1753862922017,3.01,181.29,181.26,8.24529194]
[1753862922311,3.01,181.29,181.26,2.72809194]
[1753862922817,3.01,181.29,181.28,5.5166]
[1753862923016,3.01,181.29,181.28,8.24469194]
[1753862924013,3.01,181.36,181.31,5.5155]
[1753862924320,3.01,181.34,181.31,5.5155]
[1753862924514,3.01,181.34,181.32,5.5153]
[1753862924715,3.01,181.34,181.3,2.72809194]
[1753862926021,3.01,181.37,181.31,5.5156]
[1753862926218,8.4442466,181.36,181.3,2.72809194]
[1753862926422,3.01,181.34,181.3,2.72809194]
[1753862926918,3.01,181.33,181.3,2.72809194]
[1753862927221,3.01,181.33,181.32,5.5154]
[1753862927620,3.01,181.33,181.21,16.59]
[1753862927621,3.01,181.33,181.28,2.72809194]
[1753862928123,3.01,181.33,181.28,8.24469194]
[1753862928326,3.01,181.33,181.28,2.72809194]
[1753862928824,3.01,181.33,181.29,5.5162]
[1753862929218,3.01,181.33,181.27,2.72809194]
[1753862929416,3.01,181.33,181.29,5.5162]
[1753862929732,3.01,181.33,181.27,2.72809194]
[1753862929931,3.01,181.33,181.29,2.72809194]
[1753862930226,3.01,181.33,181.29,8.24429194]
[1753862930624,3.01,181.33,181.28,5.5165]
[1753862930825,3.01,181.33,181.28,8.24459194]
[1753862931225,3.01,181.33,181.29,5.5162]
[1753862933527,3.0,181.32,181.28,8.24459194]
[1753862934232,3.0,181.31,181.21,118.84]
[1753862934533,3.0,181.3,181.29,5.5161]
[1753862936733,3.0,181.34,181.28,2.72809194]
[1753862936933,3.0,181.32,181.28,2.72809194]
[1753862937329,3.0,181.31,181.28,2.72809194]
[1753862937937,3.0,181.36,181.3,2.72809194]
[1753862938133,11.98704862,181.35,181.32,2.72809194]
[1753862938329,14.98704862,181.34,181.32,2.72809194]
[1753862938538,4.59558069,181.33,181.32,8.24349194]
[1753862939444,7.59558069,181.33,181.32,2.72809194]
[1753862939633,3.0,181.32,181.31,5.5156]
[1753862940329,3.0,181.32,181.28,2.72809194]
[1753862940735,3.0,181.32,181.29,5.516]
[1753862941339,3.0,181.32,181.28,2.72809194]
[1753862941539,3.0,181.36,181.28,2.72809194]
[1753862941741,12.00780039,181.35,181.28,2.72809194]
[1753862941936,3.0,181.33,181.3,5.5158]
[1753862942835,3.0,181.36,181.3,2.72809194]
[1753862943144,3.0,181.33,181.3,2.72809194]
[1753862943334,3.0,181.32,181.3,2.72809194]
[1753862943540,3.0,181.32,181.31,5.5157]
[1753862945143,3.0,181.32,181.3,5.5159]
[1753862945542,3.0,181.32,181.28,2.72809194]
[1753862946344,3.0,181.32,181.31,5.5157]
[1753862949542,3.0,181.32,181.26,2.72809194]
[1753862950242,3.0,181.32,181.28,5.5164]
[1753862950547,3.0,181.32,181.26,2.72809194]
[1753862951046,3.0,181.32,181.28,5.5164]
[1753862951847,8.5156,181.32,181.27,5.5168]
[1753862952146,3.0,181.31,181.27,5.5168]
[1753862952342,5.72809194,181.31,181.24,121.30809194]
[1753862952540,3.0,181.28,181.22,2.72809194]
[1753862952735,3.0,181.28,181.2,2.72809194]
[1753862953244,3.0,181.27,181.23,5.5178]
[1753862953647,3.0,181.24,181.2,5.5189]
[1753862953842,3.0,181.24,181.17,118.4]
[1753862953843,2.72809194,181.23,181.17,118.4]
[1753862954038,3.0,181.22,181.17,118.4]
[1753862954444,3.0,181.22,181.13,103.30011451]
[1753862954643,3.0,181.22,181.15,2.72809194]
[1753862955046,3.0,181.22,181.19,5.519]
[1753862957451,3.0,181.22,181.18,5.5196]
[1753862957851,3.0,181.22,181.16,5.52]
[1753862958046,2.72809194,181.22,181.16,5.52]
[1753862958246,3.0,181.21,181.16,5.52]
[1753862959752,3.0,181.21,181.17,5.5199]
[1753862960552,3.0,181.21,181.16,5.5201]
[1753862960754,3.0,181.21,181.15,2.72809194]
[1753862960946,3.0,181.21,181.17,5.5196]
[1753862962652,3.0,181.21,181.16,5.5201]
[1753862963049,3.0,181.21,181.14,5.5208]
[1753862963050,5.5192,181.2,181.14,5.5208]
[1753862963249,5.5192,181.2,181.13,100.57202257]
[1753862963250,3.1,181.19,181.13,100.57202257]
[1753862963449,3.1,181.19,181.11,2.72809194]
[1753862963949,2.72809194,181.18,181.11,2.72809194]
[1753862964148,2.72809194,181.18,181.1,118.4]
[1753862964149,3.1,181.17,181.1,118.4]
[1753862964550,3.1,181.16,181.11,5.5217]
[1753862965348,2.72809194,181.18,181.1,118.4]
[1753862965552,4.6071529,181.25,181.06,2.72809194]
[1753862965553,2.72809194,181.14,181.06,2.72809194]
[1753862965754,3.1,181.13,181.06,2.72809194]
[1753862967159,3.1,181.13,181.09,5.5222]
[1753862967656,3.1,181.13,181.07,5.5227]
[1753862967850,3.1,181.11,180.98,370.98]
[1753862968044,2.72809194,181.17,181.02,2.72809194]
[1753862968045,8.25039194,181.1,181.02,2.72809194]
[1753862968246,3.1,181.09,181.05,5.5235]
[1753862968753,3.1,181.09,181.02,2.72809194]
[1753862968956,3.1,181.09,181.04,5.5238]
[1753862969345,5.5228,181.08,181.02,2.72809194]
[1753862969546,3.1,181.07,181.01,118.52]
[1753862969957,8.6232,181.07,181.01,124.0446]
[1753862970146,3.1,181.06,181.01,124.0446]
[1753862970350,3.1,181.06,181.01,118.52]
[1753862972349,3.1,181.06,181.03,5.5241]
[1753862972554,3.1,181.06,181.01,118.52]
[1753862972858,3.1,181.07,181.03,5.5239]
[1753862973055,3.1,181.07,181.01,118.52]
[1753862973358,3.1,181.05,181.01,118.52]
[1753862973551,3.1,181.05,181.0,5.525]
[1753862973759,2.72809194,181.04,180.97,118.56]
[1753862974059,3.1,181.03,180.97,118.56]
[1753862974255,5.5248,181.02,180.96,5.5263]
[1753862974453,3.1,181.01,180.93,121.34809194]
[1753862975753,3.1,181.01,180.97,5.5259]
[1753862976860,3.1,181.01,180.93,121.34809194]
[1753862976861,3.1,181.01,180.98,5.5257]
[1753862977055,3.1,181.01,180.93,118.62]
[1753862977254,3.1,181.01,180.94,2.72809194]
[1753862978660,3.1,181.0,180.96,5.5263]
[1753862979157,5.5252,181.0,180.95,5.5266]
[1753862979364,3.1,180.99,180.94,2.72809194]
[1753862979960,3.1,180.98,180.93,118.62]
[1753862980460,5.526,180.98,180.93,124.1471]
[1753862980658,3.1,180.97,180.93,124.1471]
[1753862981059,8.6261,180.97,180.93,118.62]
[1753862981259,5.5261,180.97,180.92,5.5275]
[1753862981461,3.1,180.96,180.92,5.5275]
[1753862981862,3.1,180.96,180.9,2.72809194]
[1753862981863,3.1,180.96,180.94,5.5269]
[1753862982759,3.1,180.97,180.94,5.5269]
[1753862982957,3.1,180.97,180.9,2.72809194]
[1753862983759,3.1,180.97,180.94,5.5267]
[1753862983961,3.1,180.99,180.94,2.72809194]
[1753862984357,3.1,180.98,180.94,2.72809194]
[1753862984954,3.1,180.98,180.97,5.526]
[1753862985159,3.1,181.03,180.94,121.40809194]
[1753862985358,2.72809194,181.06,180.96,2.72809194]
[1753862985557,3.1,181.02,180.96,2.72809194]
[1753862985956,3.1,181.02,180.99,5.5254]
[1753862986860,3.1,181.02,180.96,2.72809194]
[1753862987064,3.1,181.02,180.98,2.72809194]
[1753862987266,3.1,181.01,180.98,2.72809194]
[1753862987567,3.1,181.01,181.0,5.5251]
[1753862990670,3.1,181.01,180.99,5.5254]
[1753862990866,3.1,181.01,180.94,2.72809194]
[1753862991068,3.1,180.99,180.92,2.72809194]
[1753862991265,3.1,180.99,180.95,5.5265]
[1753862991570,3.1,180.99,180.92,2.72809194]
[1753862991766,3.1,180.99,180.95,5.5265]
[1753862992159,3.1,180.99,180.92,2.72809194]
[1753862992365,3.1,180.99,180.97,5.5258]
[1753862993972,3.1,180.99,180.96,5.5263]
[1753862994368,3.1,180.99,180.92,2.72809194]
[1753862994563,3.1,180.99,180.91,118.64]
[1753862995372,3.07,180.97,180.91,118.64]
[1753862996472,3.07,180.97,180.94,5.5268]
[1753862997673,3.07,180.97,180.93,5.5272]
[1753862997873,3.07,180.97,180.91,118.64]
[1753862997874,5.5261,180.97,180.91,118.64]
[1753862998071,3.07,180.96,180.91,118.64]
[1753862998271,8.5964,180.96,180.92,5.5273]
[1753862998466,5.5264,180.96,180.92,5.5273]
[1753862998671,3.07,180.95,180.92,5.5273]
[1753862999476,2.72809194,180.94,180.86,2.72809194]
[1753862999675,2.72809194,180.94,180.78,382.5437]
[1753862999676,3.07,180.93,180.84,2.72809194]
[1753862999866,2.72809194,180.9,180.83,5.5302]
[1753863000067,3.07,180.87,180.8,121.36809194]
[1753863000471,2.72809194,180.88,180.8,121.36809194]
[1753863000779,3.07,180.86,180.8,121.36809194]
[1753863000979,3.07,180.86,180.81,5.5306]
[1753863001170,5.79809194,180.86,180.8,118.64]
[1753863001374,5.79809194,180.86,180.76,2.72809194]
[1753863001375,3.07,180.85,180.76,2.72809194]
[1753863001572,3.07,180.85,180.79,5.5315]
[1753863001879,3.07,180.85,180.75,118.74]
[1753863001880,3.07,180.84,180.8,2.72809194]
[1753863002082,3.07,180.84,180.83,5.5303]
[1753863002674,2.72809194,180.91,180.86,5.5292]
[1753863002870,3.07,180.87,180.86,5.5292]
[1753863006787,3.07,180.87,180.84,5.5298]
[1753863006984,3.07,180.87,180.78,4.43978512]
[1753863006985,5.5294,180.87,180.78,4.43978512]
[1753863007282,3.07,180.85,180.78,5.5318]
[1753863007483,3.07,180.85,180.74,4.43978512]
[1753863007789,3.07,180.83,180.76,5.5323]
[1753863007980,3.07,180.81,180.72,123.31978512]
[1753863008383,3.07,180.81,180.78,5.5318]
[1753863008583,3.07,180.81,180.72,123.31978512]
[1753863008786,3.07,180.81,180.74,4.43978512]
[1753863009689,3.07,180.81,180.75,5.5325]
[1753863010479,3.07,180.81,180.72,4.43978512]
[1753863010480,3.07,180.79,180.7,4.43978512]
[1753863011088,3.07,180.79,180.75,5.5325]
[1753863013492,4.43978512,180.78,180.69,118.96]
[1753863013693,3.07,180.77,180.69,118.96]
[1753863013888,4.43978512,180.76,180.69,118.96]
[1753863014091,3.07,180.75,180.69,118.96]
[1753863015392,3.07,180.75,180.69,123.39978512]
[1753863015591,4.43978512,180.79,180.74,5.5331]
[1753863015896,3.07,180.79,180.72,4.43978512]
[1753863016197,3.07,180.79,180.78,5.5319]
[1753863016393,3.07,180.81,180.75,4.43978512]
[1753863016589,3.07,180.81,180.79,5.5314]
[1753863016788,3.07,180.8,180.79,5.5314]
[1753863018593,3.07,180.8,180.73,4.43978512]
[1753863018997,3.07,180.8,180.71,4.43978512]
[1753863019499,3.07,180.8,180.76,5.5322]
[1753863019801,3.07,180.8,180.71,4.43978512]
[1753863020098,3.07,180.8,180.77,5.5322]
[1753863020398,3.07,180.8,180.71,4.43978512]
[1753863020596,3.07,180.8,180.79,5.5316]
[1753863023499,3.0,180.85,180.82,5.5306]
[1753863023694,3.0,180.85,180.76,4.43978512]
[1753863023900,8.5298,180.85,180.76,4.43978512]
[1753863024200,3.0,180.85,180.76,4.43978512]
[1753863024397,5.5311,180.81,180.72,4.43978512]
[1753863024592,3.0,180.8,180.72,4.43978512]
[1753863025600,3.0,180.8,180.77,5.532]
[1753863026099,3.0,180.8,180.78,5.5316]
[1753863026394,3.0,180.83,180.75,4.43978512]
[1753863027093,3.0,180.83,180.8,5.531]
[1753863029194,3.0,180.83,180.79,5.5315]
[1753863029499,3.0,180.83,180.75,4.43978512]
[1753863030497,4.43978512,180.88,180.78,4.43978512]
[1753863030699,3.0,180.86,180.8,5.531]
[1753863030902,5.5294,180.86,180.78,4.43978512]
[1753863031109,3.0,180.85,180.76,4.43978512]
[1753863031401,3.0,180.85,180.79,5.5313]
[1753863031802,3.0,180.83,180.8,5.5312]
[1753863032202,3.0,180.87,180.76,4.43978512]
[1753863033306,4.1358731,180.86,180.76,4.43978512]
[1753863033503,3.0,180.85,180.76,4.43978512]
[1753863033702,3.0,180.85,180.79,5.5315]
[1753863033903,3.0,180.85,180.76,4.43978512]
[1753863034908,5.5304,180.83,180.79,5.5315]
[1753863035105,3.0,180.82,180.76,4.43978512]
[1753863035302,3.0,180.82,180.72,4.43978512]
[1753863035503,5.5315,180.8,180.75,5.5327]
[1753863035698,3.0,180.79,180.72,4.43978512]
[1753863036108,5.5318,180.79,180.74,5.5328]
[1753863036404,4.43978512,180.83,180.72,4.43978512]
[1753863036606,3.0,180.82,180.81,5.5309]
[1753863039505,5.5296,180.86,180.82,5.5305]
[1753863039709,3.0,180.84,180.78,4.43978512]
[1753863040511,3.0,180.86,180.81,4.43978512]
[1753863040712,3.0,180.86,180.85,5.5296]
[1753863041012,3.0,180.84,180.81,4.43978512]
[1753863041208,3.0,180.88,180.85,5.5297]
[1753863041807,3.0,180.88,180.81,4.43978512]
[1753863042011,4.55894702,180.94,180.87,4.43978512]
[1753863042311,16.16102726,180.93,180.9,4.43978512]
[1753863042504,3.42958445,180.92,180.9,4.43978512]
[1753863042704,3.0,180.93,180.92,5.5276]
[1753863043607,3.0,180.94,180.9,4.43978512]
[1753863043810,3.0,180.93,180.9,4.43978512]
[1753863044005,4.43978512,181.01,180.8,371.84]
[1753863044006,3.0,180.97,180.89,4.43978512]
[1753863044201,8.5268,180.95,180.89,4.43978512]
[1753863044412,3.0,180.93,180.91,5.5276]
[1753863044610,3.0,180.93,180.89,4.43978512]
[1753863045117,3.0,180.93,180.87,4.43978512]
[1753863045514,3.0,180.93,180.91,5.5279]
[1753863045715,3.0,180.93,180.87,4.43978512]
[1753863045916,3.0,180.93,180.85,4.43978512]
[1753863046216,4.16608116,180.92,180.88,5.5286]
[1753863046418,3.0,180.91,180.85,4.43978512]
[1753863047213,3.0,180.91,180.89,5.5284]
[1753863047414,3.0,180.91,180.85,4.43978512]
[1753863047615,3.0,180.91,180.88,5.5287]
[1753863047919,3.0,180.91,180.85,4.43978512]
[1753863048209,3.0,180.91,180.87,5.529]
[1753863048711,3.0,180.91,180.85,4.43978512]
[1753863050317,3.0,180.91,180.88,5.5286]
[1753863051619,3.0,180.91,180.86,5.5291]
[1753863051914,3.0,180.91,180.81,4.43978512]
[1753863052116,4.43978512,180.88,180.8,576.33351123]
[1753863052319,4.43978512,180.86,180.77,4.43978512]
[1753863052516,3.13,180.85,180.75,4.43978512]
[1753863052815,3.13,180.86,180.78,4.43978512]
[1753863054918,3.13,180.85,180.78,4.43978512]
[1753863055720,3.13,180.85,180.81,5.5307]
[1753863056021,3.13,180.84,180.78,4.43978512]
[1753863056408,3.13,180.84,180.76,4.43978512]
[1753863056610,7.56978512,180.84,180.76,4.43978512]
[1753863056813,3.13,180.83,180.75,119.16]
[1753863057214,5.5308,180.82,180.77,5.5319]
[1753863057415,3.13,180.81,180.77,5.5319]
[1753863057808,3.13,180.81,180.75,119.16]
[1753863057809,3.13,180.81,180.76,5.5324]
[1753863058424,3.13,180.81,180.75,119.16]
[1753863059320,8.6611,180.81,180.75,119.16]
[1753863059722,3.13,180.83,180.75,119.16]
[1753863059922,5.5309,180.82,180.77,5.5321]
[1753863060117,3.13,180.81,180.77,5.5321]
[1753863060315,3.13,180.81,180.75,119.16]
[1753863060522,3.13,180.83,180.75,119.16]
[1753863060918,3.13,180.83,180.78,5.5317]
[1753863062122,3.13,180.83,180.79,5.5314]
[1753863062322,3.13,180.83,180.75,119.16]
[1753863062724,3.13,180.83,180.75,123.59978512]
[1753863063217,3.13,180.83,180.79,5.5315]
[1753863064319,3.13,180.82,180.79,5.5315]
[1753863064524,3.13,180.82,180.78,5.5318]
[1753863065224,5.5307,180.82,180.77,5.5321]
[1753863065424,3.13,180.81,180.77,5.5321]
[1753863065826,3.13,180.81,180.78,5.5319]
[1753863066025,3.13,180.81,180.75,119.16]
[1753863066924,3.13,180.81,180.75,121.88721375]
[1753863068130,3.13,180.81,180.77,5.5319]
[1753863068529,3.13,180.81,180.75,121.88721375]
[1753863068928,3.13,180.81,180.78,5.5316]
[1753863071528,3.13,180.81,180.77,5.5321]
[1753863072434,3.13,180.81,180.75,121.88721375]
[1753863073130,3.13,180.81,180.78,5.5316]
[1753863073629,3.13,180.81,180.79,5.5315]
[1753863073835,3.13,180.87,180.79,2.72721375]
[1753863074027,2.72721375,180.88,180.79,2.72721375]
[1753863074028,4.16994509,180.86,180.79,2.72721375]
[1753863074223,3.13,180.85,180.79,2.72721375]
[1753863074424,3.13,180.85,180.77,2.72721375]
[1753863074726,3.13,180.83,180.77,2.72721375]
[1753863074927,3.13,180.81,180.77,8.25931375]
[1753863075125,3.13,180.81,180.77,2.72721375]
[1753863075529,3.13,180.81,180.77,8.25931375]
[1753863075734,3.13,180.81,180.75,121.88721375]
[1753863076227,5.531,180.81,180.76,5.5324]
[1753863076435,3.13,180.8,180.76,5.5324]
[1753863077127,3.13,180.8,180.77,5.5321]
[1753863077327,3.13,180.8,180.75,121.88721375]
[1753863077631,3.13,180.79,180.75,121.88721375]
[1753863077831,5.5308,180.82,180.77,5.5321]
[1753863078030,3.13,180.78,180.77,5.5321]
[1753863082132,3.13,180.78,180.76,5.5324]
[1753863082334,3.13,180.78,180.75,121.88721375]
[1753863082829,3.13,180.78,180.75,127.41981375]
[1753863083329,3.13,180.78,180.75,121.88721375]